fUSD/lending_fUSD_20250911
["ID","MTS","AMOUNT","RATE_DAILY","PERIOD"]
[384827239,1757575775203,-1000.0,0.00030503,7]
[384827240,1757575775275,-645.11,0.00030503,7]
[384827241,1757575775356,-668.6,0.00030503,7]
[384827242,1757575775435,-409.7723963,0.00030503,7]
[384827243,1757575775518,-791.03,0.00030503,7]
[384827244,1757575775596,-409.91494185,0.00030503,7]
[384827245,1757575775674,-400.0,0.00030503,7]
[384827246,1757575775752,-400.0,0.00030503,7]
[384827247,1757575775834,-425.11458417,0.00030503,7]
[384827248,1757575775910,-407.11010923,0.00030503,7]
[384827249,1757575775982,-400.0,0.00030503,7]
[384827250,1757575776231,-400.0,0.00030503,7]
[384827251,1757575776322,-1085.22,0.00030503,7]
[384827252,1757575776395,-500.08,0.00030503,7]
[384827253,1757575776466,-6683.2,0.00030503,7]
[384827254,1757575776535,-400.0,0.00030503,7]
[384827255,1757575776604,-2124.71,0.00030503,7]
[384827256,1757575776672,-400.0,0.00030503,7]
[384827257,1757575776741,-400.0,0.00030503,7]
[384827258,1757575776811,-400.0,0.00030503,7]
[384827259,1757575776886,-400.0,0.00030503,7]
[384827260,1757575776955,-2568.48,0.00030503,7]
[384827261,1757575777027,-400.0,0.00030503,7]
[384827262,1757575777098,-400.0,0.00030503,7]
[384827263,1757575777170,-1219.06,0.00030503,7]
[384827264,1757575777239,-561.21,0.00030503,7]
[384827265,1757575777309,-400.0,0.00030503,7]
[384827266,1757575777383,-400.0,0.00030503,7]
[384827267,1757575777457,-400.0,0.00030503,7]
[384827268,1757575777532,-716.29,0.00030503,7]
[384827269,1757575777606,-400.0,0.00030503,7]
[384827270,1757575777677,-505.45620169,0.00030503,7]
[384827271,1757575777750,-675.1,0.00030503,7]
[384827272,1757575777821,-407.5962272,0.00030503,7]
[384827273,1757575777898,-400.0,0.00030503,7]
[384827274,1757575777971,-400.0,0.00030503,7]
[384827275,1757575778045,-1113.32,0.00030503,7]
[384827276,1757575778119,-403.56023992,0.00030503,7]
[384827277,1757575778194,-473.34,0.00030503,7]
[384827278,1757575778267,-400.0,0.00030503,7]
[384827279,1757575778344,-909.46,0.00030503,7]
[384827280,1757575778417,-400.0,0.00030503,7]
[384827281,1757575778488,-612.79,0.00030511,7]
[384827282,1757575778564,-645.63,0.00030511,7]
[384827283,1757575778637,-461.56,0.00030511,7]
[384827284,1757575778711,-777.7,0.00030511,7]
[384827285,1757575778784,-487.54,0.00030511,7]
[384827286,1757575778859,-1301.99,0.00030511,7]
[384827287,1757575778935,-403.9,0.00030511,7]
[384827288,1757575779008,-400.0,0.00030511,7]
[384827289,1757575779081,-463.19,0.00030511,7]
[384827290,1757575779152,-803.16,0.00030511,7]
[384827291,1757575779225,-616.75,0.00030511,7]
[384827292,1757575779299,-414.94074875,0.00030511,7]
[384827293,1757575779384,-400.0,0.00030511,7]
[384827294,1757575779455,-535.5,0.00030511,7]
[384827295,1757575779526,-400.0,0.00030511,7]
[384827296,1757575779599,-400.0,0.00030511,7]
[384827297,1757575779669,-400.0,0.00030511,7]
[384827298,1757575779743,-400.0,0.00030511,7]
[384827299,1757575779821,-739.14,0.00030511,7]
[384827300,1757575779898,-443.21,0.00030511,7]
[384827301,1757575779984,-400.0,0.00030511,7]
[384827302,1757575780087,-400.0,0.00030511,7]
[384827303,1757575780168,-815.14,0.00030511,7]
[384827304,1757575780241,-400.0,0.00030511,7]
[384827305,1757575780316,-400.0,0.00030511,7]
[384827306,1757575780393,-400.0,0.00030511,7]
[384827307,1757575780468,-638.22,0.00030511,7]
[384827308,1757575780544,-400.0,0.00030511,7]
[384827309,1757575780616,-739.02,0.00030511,7]
[384827310,1757575780691,-400.0,0.00030511,7]
[384827311,1757575780764,-475.38,0.00030511,7]
[384827312,1757575780849,-772.19,0.00030511,7]
[384827313,1757575780935,-400.0,0.00030511,7]
[384827314,1757575781012,-400.0,0.00030511,7]
[384827315,1757575781092,-490.7,0.00030511,7]
[384827316,1757575781171,-439.79,0.00030511,7]
[384827317,1757575781244,-961.35,0.00030511,7]
[384827318,1757575781321,-529.43,0.00030511,7]
[384827319,1757575781396,-476.37,0.00030511,7]
[384827320,1757575781468,-674.67,0.00030511,7]
[384827321,1757575781540,-730.49,0.00030511,7]
[384827322,1757575781612,-400.0,0.00030511,7]
[384827323,1757575781684,-659.8,0.00030511,7]
[384827324,1757575781759,-564.39,0.00030511,7]
[384827325,1757575781836,-400.0,0.00030511,7]
[384827326,1757575781911,-792.39,0.00030511,7]
[384827327,1757575781987,-483.7,0.00030511,7]
[384827328,1757575782068,-400.0,0.00030511,7]
[384827329,1757575782149,-400.0,0.00030511,7]
[384827330,1757575782231,-914.78,0.00030511,7]
[384827331,1757575782309,-752.94,0.00030511,7]
[384827332,1757575782390,-400.0,0.00030511,7]
[384827333,1757575782470,-497.41,0.00030511,7]
[384827334,1757575782548,-511.92,0.00030511,7]
[384827335,1757575782627,-448.18,0.00030511,7]
[384827336,1757575782703,-400.0,0.00030511,7]
[384827337,1757575782780,-817.73,0.00030511,7]
[384827338,1757575782859,-400.0,0.00030511,7]
[384827339,1757575782935,-400.0,0.00030511,7]
[384827340,1757575783011,-704.91,0.00030511,7]
[384827341,1757575783084,-400.0,0.00030511,7]
[384827342,1757575783158,-644.74,0.00030511,7]
[384827343,1757575783230,-664.13,0.00030511,7]
[384827344,1757575783301,-2512.55,0.00030511,7]
[384827345,1757575783375,-520.06,0.00030511,7]
[384827346,1757575783447,-3023.24,0.00030511,7]
[384827347,1757575783527,-582.78,0.00030511,7]
[384827348,1757575783606,-925.54,0.00030511,7]
[384827349,1757575783684,-400.0,0.00030511,7]
[384827350,1757575783765,-909.49,0.00030511,7]
[384827351,1757575783846,-1731.66,0.00030511,7]
[384827352,1757575783925,-400.0,0.00030511,7]
[384827353,1757575783999,-674.31,0.00030511,7]
[384827354,1757575784078,-1115.19,0.00030511,7]
[384827355,1757575784442,-470.25863724,0.00030511,7]
[384827356,1757575784518,-797.34,0.00030511,7]
[384827357,1757575784596,-400.0,0.00030511,7]
[384827358,1757575784669,-400.0,0.00030511,7]
[384827359,1757575784743,-400.0,0.00030511,7]
[384827360,1757575784820,-561.82,0.00030511,7]
[384827361,1757575784906,-934.84,0.00030511,7]
[384827362,1757575784988,-500.81,0.00030511,7]
[384827363,1757575785078,-400.0,0.00030511,7]
[384827364,1757575785158,-693.33,0.00030511,7]
[384827365,1757575785235,-610.36,0.00030511,7]
[384827366,1757575785316,-400.0,0.00030511,7]
[384827367,1757575785395,-400.0,0.00030511,7]
[384827368,1757575785476,-1289.72,0.00030511,7]
[384827369,1757575785555,-400.0,0.00030511,7]
[384827370,1757575785633,-400.0,0.00030511,7]
[384827371,1757575785712,-1731.62,0.00030511,7]
[384827372,1757575785790,-775.18,0.00030511,7]
[384827373,1757575785872,-400.0,0.00030511,7]
[384827374,1757575785953,-624.98,0.00030511,7]
[384827375,1757575786036,-709.71,0.00030511,7]
[384827376,1757575786114,-400.0,0.00030511,7]
[384827377,1757575786192,-400.0,0.00030511,7]
[384827378,1757575786269,-400.0,0.00030511,7]
[384827379,1757575786351,-407.23131477,0.00030511,7]
[384827380,1757575786427,-930.14,0.00030511,7]
[384827381,1757575786503,-400.0,0.00030511,7]
[384827382,1757575786581,-400.0,0.00030511,7]
[384827383,1757575786660,-1201.36,0.00030511,7]
[384827384,1757575786736,-566.67,0.00030511,7]
[384827385,1757575786810,-400.0,0.00030511,7]
[384827386,1757575786884,-400.0,0.00030511,7]
[384827387,1757575786957,-300.0,0.00030511,7]
[384827388,1757575787031,-1209.42,0.00030511,7]
[384827389,1757575787105,-400.0,0.00030511,7]
[384827390,1757575787176,-675.84,0.00030511,7]
[384827391,1757575787248,-798.89,0.00030511,7]
[384827392,1757575787325,-665.51,0.00030511,7]
[384827393,1757575787403,-594.53,0.00030511,7]
[384827394,1757575787481,-400.0,0.00030511,7]
[384827395,1757575787556,-400.0,0.00030511,7]
[384827396,1757575787628,-807.84,0.00030511,7]
[384827397,1757575787700,-1747.03,0.00030511,7]
[384827398,1757575787773,-400.0,0.00030511,7]
[384827399,1757575787846,-400.0,0.00030511,7]
[384827400,1757575787920,-408.02,0.00030511,7]
[384827401,1757575787995,-1212.37,0.00030511,7]
[384827402,1757575788071,-400.0,0.00030511,7]
[384827403,1757575788149,-2041.89,0.00030511,7]
[384827404,1757575788223,-562.72,0.00030511,7]
[384827405,1757575788306,-400.0,0.00030511,7]
[384827406,1757575788386,-549.02,0.00030511,7]
[384827407,1757575788464,-447.69,0.00030511,7]
[384827408,1757575788543,-2153.25,0.00030511,7]
[384827409,1757575788623,-400.0,0.00030511,7]
[384827410,1757575788702,-400.0,0.00030511,7]
[384827411,1757575788788,-3652.29,0.00030511,7]
[384827412,1757575788891,-969.75,0.00030511,7]
[384827413,1757575788971,-400.0,0.00030511,7]
[384827414,1757575789054,-400.0,0.00030511,7]
[384827415,1757575789142,-555.45,0.00030511,7]
[384827416,1757575789222,-497.93,0.00030511,7]
[384827417,1757575789296,-400.0,0.00030511,7]
[384827418,1757575789372,-3128.86,0.00030511,7]
[384827419,1757575789449,-553.1,0.00030511,7]
[384827420,1757575789528,-575.65,0.00030511,7]
[384827421,1757575789603,-614.24,0.00030511,7]
[384827422,1757575789677,-400.0,0.00030511,7]
[384827423,1757575789751,-400.0,0.00030511,7]
[384827424,1757575789827,-747.66,0.00030511,7]
[384827425,1757575789902,-400.0,0.00030511,7]
[384827426,1757575789977,-400.0,0.00030511,7]
[384827427,1757575790054,-400.0,0.00030511,7]
[384827428,1757575790130,-673.25,0.00030511,7]
[384827429,1757575790208,-634.16,0.00030511,7]
[384827430,1757575790282,-400.0,0.00030511,7]
[384827431,1757575790356,-400.0,0.00030511,7]
[384827432,1757575790431,-467.67,0.00030511,7]
[384827433,1757575790511,-400.0,0.00030511,7]
[384827434,1757575790583,-677.51,0.00030511,7]
[384827435,1757575790656,-840.58,0.00030511,7]
[384827436,1757575790730,-441.61,0.00030512,7]
[384827437,1757575790803,-1351.51,0.00030512,7]
[384827438,1757575790879,-1000.0,0.00030521,2]
[384827439,1757575790951,-400.0,0.00030523,7]
[384827440,1757575791024,-404.4670449,0.00030523,7]
[384827441,1757575791096,-420.02945436,0.00030523,7]
[384827442,1757575791171,-150.95541759,0.00030523,7]
[384827443,1757575791248,-407.7157055,0.00030523,7]
[384827444,1757575791320,-341.5591076,0.00030523,7]
[384827445,1757575791399,-403.54,0.00030523,7]
[384827446,1757575791473,-400.0,0.00030523,7]
[384827447,1757575791551,-400.0,0.00030523,7]
[384827448,1757575791627,-438.55,0.00030523,7]
[384827449,1757575791703,-400.0,0.00030523,7]
[384827450,1757575791780,-423.78236468,0.00030523,7]
[384827451,1757575791859,-400.0,0.00030523,7]
[384827452,1757575791933,-400.0,0.00030523,7]
[384827453,1757575792005,-682.59,0.00030523,7]
[384827454,1757575792078,-400.0,0.00030523,7]
[384827455,1757575792150,-400.0,0.00030523,7]
[384827456,1757575792221,-515.91,0.00030523,7]
[384827457,1757575792298,-400.0,0.00030523,7]
[384827458,1757575792375,-400.0,0.00030523,7]
[384827459,1757575792654,-544.49,0.00030523,7]
[384827460,1757575792733,-400.0,0.00030523,7]
[384827461,1757575792815,-400.0,0.00030523,7]
[384827462,1757575792892,-400.0,0.00030523,7]
[384827463,1757575792971,-400.0,0.00030523,7]
[384827464,1757575793051,-400.0,0.00030523,7]
[384827465,1757575793128,-797.4,0.00030523,7]
[384827466,1757575793203,-400.0,0.00030523,7]
[384827467,1757575793281,-400.0,0.00030523,7]
[384827468,1757575793359,-400.0,0.00030523,7]
[384827469,1757575793436,-400.0,0.00030523,7]
[384827470,1757575793514,-400.0,0.00030523,7]
[384827471,1757575793594,-611.48,0.00030523,7]
[384827472,1757575793673,-400.0,0.00030523,7]
[384827473,1757575793751,-665.1,0.00030523,7]
[384827474,1757575793833,-428.44472048,0.00030523,7]
[384827475,1757575793912,-400.0,0.00030523,7]
[384827476,1757575793987,-400.0,0.00030523,7]
[384827477,1757575794060,-407.75491133,0.00030523,7]
[384827478,1757575794138,-400.0,0.00030523,7]
[384827479,1757575794214,-792.88,0.00030523,7]
[384827480,1757575794298,-400.0,0.00030523,7]
[384827481,1757575794377,-400.0,0.00030523,7]
[384827482,1757575794453,-446.31,0.00030523,7]
[384827483,1757575794528,-594.61,0.00030523,7]
[384827484,1757575794603,-400.0,0.00030523,7]
[384827485,1757575794675,-400.0,0.00030523,7]
[384827486,1757575794748,-403.40569822,0.00030523,7]
[384827487,1757575794824,-400.0,0.00030523,7]
[384827488,1757575794902,-400.0,0.00030523,7]
[384827489,1757575794981,-400.0,0.00030523,7]
[384827490,1757575795061,-400.0,0.00030523,7]
[384827491,1757575795139,-409.75,0.00030523,7]
[384827492,1757575795214,-400.0,0.00030523,7]
[384827493,1757575795289,-609.03,0.00030523,7]
[384827494,1757575795367,-400.0,0.00030523,7]
[384827495,1757575795443,-411.37579639,0.00030523,7]
[384827496,1757575795522,-733.03,0.00030523,7]
[384827497,1757575795601,-400.0,0.00030523,7]
[384827498,1757575795678,-400.0,0.00030523,7]
[384827499,1757575795758,-400.0,0.00030523,7]
[384827500,1757575795833,-409.41604608,0.00030523,7]
[384827501,1757575795910,-403.64963206,0.00030523,2]
[384827502,1757575795989,-400.0,0.00030523,7]
[384827503,1757575796068,-472.88,0.00030523,7]
[384827504,1757575796148,-1233.9,0.00030523,7]
[384827505,1757575796230,-400.0,0.00030523,7]
[384827506,1757575796311,-400.0,0.00030523,7]
[384827507,1757575796392,-409.24912034,0.00030523,7]
[384827508,1757575796473,-400.0,0.00030523,7]
[384827509,1757575796550,-400.0,0.00030523,7]
[384827510,1757575796627,-400.0,0.00030523,7]
[384827511,1757575796703,-400.0,0.00030523,7]
[384827512,1757575796783,-400.0,0.00030523,7]
[384827513,1757575796868,-496.51,0.00030523,7]
[384827514,1757575796961,-400.0,0.00030523,7]
[384827515,1757575797057,-400.0,0.00030523,7]
[384827516,1757575797135,-400.0,0.00030523,7]
[384827517,1757575797209,-400.0,0.00030523,7]
[384827518,1757575797285,-400.0,0.00030523,7]
[384827519,1757575797367,-400.0,0.00030523,7]
[384827520,1757575797454,-400.0,0.00030523,7]
[384827521,1757575797530,-400.0,0.00030523,7]
[384827522,1757575797607,-400.0,0.00030523,7]
[384827523,1757575797687,-400.0,0.00030523,7]
[384827524,1757575797766,-400.0,0.00030523,7]
[384827525,1757575797858,-400.0,0.00030523,7]
[384827526,1757575797945,-401.68322878,0.00030523,7]
[384827527,1757575798028,-541.9,0.00030523,7]
[384827528,1757575798108,-416.66,0.00030523,7]
[384827529,1757575798187,-400.0,0.00030523,7]
[384827530,1757575798265,-400.0,0.00030523,7]
[384827531,1757575798347,-447.22,0.00030523,7]
[384827532,1757575798426,-400.0,0.00030523,7]
[384827533,1757575798501,-405.29259115,0.00030523,7]
[384827534,1757575798574,-400.0,0.00030523,7]
[384827535,1757575798647,-400.0,0.00030523,7]
[384827536,1757575798722,-400.0,0.00030523,7]
[384827537,1757575798793,-400.0,0.00030523,7]
[384827538,1757575798867,-400.0,0.00030523,7]
[384827539,1757575798941,-400.0,0.00030523,7]
[384827540,1757575799010,-408.2988473,0.00030523,7]
[384827541,1757575799082,-400.0,0.00030523,7]
[384827542,1757575799152,-400.0,0.00030523,7]
[384827543,1757575799220,-400.0,0.00030523,7]
[384827544,1757575799292,-400.0,0.00030523,7]
[384827545,1757575799364,-400.0,0.00030523,7]
[384827546,1757575799434,-400.0,0.00030523,7]
[384827547,1757575799518,-400.0,0.00030523,7]
[384827548,1757575799598,-400.0,0.00030523,7]
[384827549,1757575799681,-400.0,0.00030523,7]
[384827550,1757575799758,-407.82459026,0.00030523,7]
[384827551,1757575799836,-412.98868967,0.00030523,7]
[384827552,1757575799913,-743.07,0.00030523,7]
[384827553,1757575799991,-167.69694138,0.00030523,7]
[384827554,1757575800071,-400.0,0.00030523,7]
[384827555,1757575800153,-400.0,0.00030523,7]
[384827556,1757575800240,-661.34,0.00030523,7]
[384827557,1757575800333,-400.0,0.00030523,7]
[384827558,1757575800418,-416.61923273,0.00030523,7]
[384827559,1757575800501,-400.0,0.00030523,7]
[384827560,1757575800578,-400.0,0.00030523,7]
[384827561,1757575800653,-657.64,0.00030523,7]
[384827562,1757575800729,-413.57,0.00030523,7]
[384827563,1757575800811,-400.0,0.00030523,7]
[384827564,1757575801189,-400.0,0.00030523,7]
[384827565,1757575801260,-264.45684153,0.00030523,7]
[384827566,1757575801335,-400.0,0.00030523,7]
[384827567,1757575801424,-523.01,0.00030523,7]
[384827568,1757575801507,-400.0,0.00030523,7]
[384827569,1757575801584,-400.0,0.00030523,7]
[384827570,1757575801660,-400.0,0.00030523,7]
[384827571,1757575801734,-300.0,0.00030523,7]
[384827572,1757575801811,-400.0,0.00030523,7]
[384827573,1757575801892,-445.02,0.00030523,7]
[384827574,1757575801972,-400.0,0.00030523,7]
[384827575,1757575802052,-400.0,0.00030523,7]
[384827576,1757575802133,-452.7,0.00030523,7]
[384827577,1757575802215,-440.17,0.00030523,7]
[384827578,1757575802305,-415.93460599,0.00030523,7]
[384827579,1757575802393,-400.0,0.00030523,7]
[384827580,1757575802478,-459.31,0.00030523,7]
[384827581,1757575802564,-400.0,0.00030523,7]
[384827582,1757575802648,-400.0,0.00030523,7]
[384827583,1757575802731,-400.0,0.00030523,7]
[384827584,1757575802816,-400.0,0.00030523,7]
[384827585,1757575802902,-400.0,0.00030523,7]
[384827586,1757575802987,-1831.05,0.00030523,7]
[384827587,1757575803078,-164.84617272,0.00030523,7]
[384827588,1757575803166,-400.0,0.00030523,7]
[384827589,1757575803259,-533.89805836,0.00030523,7]
[384827590,1757575803358,-409.10736618,0.00030523,7]
[384827591,1757575803455,-400.0,0.00030523,7]
[384827592,1757575803556,-400.0,0.00030523,7]
[384827593,1757575803657,-400.0,0.00030523,7]
[384827594,1757575803756,-400.0,0.00030523,7]
[384827595,1757575803873,-400.0,0.00030523,7]
[384827596,1757575803982,-400.0,0.00030523,7]
[384827597,1757575804090,-400.0,0.00030523,7]
[384827598,1757575804184,-400.0,0.00030523,7]
[384827599,1757575804276,-1545.99,0.00030523,7]
[384827600,1757575804372,-1823.45,0.00030523,7]
[384827601,1757575804468,-400.0,0.00030523,7]
[384827602,1757575804566,-400.0,0.00030523,7]
[384827603,1757575804666,-400.0,0.00030523,7]
[384827604,1757575804764,-400.0,0.00030523,7]
[384827605,1757575804861,-516.84,0.00030523,7]
[384827606,1757575804960,-400.0,0.00030523,7]
[384827607,1757575805062,-400.0,0.00030523,7]
[384827608,1757575805168,-1019.67,0.00030523,7]
[384827609,1757575805269,-400.0,0.00030523,7]
[384827610,1757575805368,-4017.8,0.00030523,5]
[384827611,1757575805465,-400.0,0.00030523,7]
[384827612,1757575805569,-400.0,0.00030523,7]
[384827613,1757575805665,-523.65177618,0.00030523,7]
[384827614,1757575805770,-1481.48,0.00030523,7]
[384827615,1757575805878,-351.82337896,0.00030523,7]
[384827616,1757575805972,-400.67,0.00030523,7]
[384827617,1757575806065,-400.0,0.00030523,7]
[384827618,1757575806154,-400.0,0.00030523,7]
[384827619,1757575806243,-400.0,0.00030523,7]
[384827620,1757575806326,-400.0,0.00030523,7]
[384827621,1757575806421,-400.0,0.00030523,7]
[384827622,1757575806504,-408.24408307,0.00030523,7]
[384827623,1757575806596,-400.0,0.00030523,7]
[384827624,1757575806680,-689.71,0.00030523,7]
[384827625,1757575806765,-410.02366904,0.00030523,7]
[384827626,1757575806860,-400.0,0.00030523,7]
[384827627,1757575806945,-400.0,0.00030523,7]
[384827628,1757575807027,-400.0,0.00030523,7]
[384827629,1757575807109,-632.22,0.00030523,7]
[384827630,1757575807190,-400.0,0.00030523,7]
[384827631,1757575807272,-400.0,0.00030523,7]
[384827632,1757575807357,-400.0,0.00030523,7]
[384827633,1757575807435,-1589.17,0.00030523,7]
[384827634,1757575807518,-405.39840191,0.00030523,7]
[384827635,1757575807608,-400.0,0.00030523,7]
[384827636,1757575807697,-400.0,0.00030523,7]
[384827637,1757575807785,-400.0,0.00030523,7]
[384827638,1757575807874,-400.0,0.00030523,7]
[384827639,1757575807965,-400.0,0.00030523,7]
[384827640,1757575808055,-481.26,0.00030523,7]
[384827641,1757575808155,-400.0,0.00030523,7]
[384827642,1757575808245,-400.0,0.00030523,7]
[384827643,1757575808336,-596.87,0.00030523,7]
[384827644,1757575808429,-400.0,0.00030523,7]
[384827645,1757575808528,-400.0,0.00030523,7]
[384827646,1757575808619,-400.0,0.00030523,7]
[384827647,1757575808712,-400.0,0.00030523,7]
[384827648,1757575808808,-400.0,0.00030523,7]
[384827649,1757575808902,-400.0,0.00030523,7]
[384827650,1757575808993,-400.0,0.00030523,7]
[384827651,1757575809097,-400.0,0.00030523,7]
[384827652,1757575809190,-405.71400123,0.00030523,7]
[384827653,1757575809276,-400.0,0.00030523,7]
[384827654,1757575809367,-400.0,0.00030523,7]
[384827655,1757575809455,-400.0,0.00030523,7]
[384827656,1757575809545,-400.0,0.00030523,7]
[384827657,1757575809634,-412.30616582,0.00030523,7]
[384827658,1757575809718,-400.0,0.00030523,7]
[384827659,1757575809808,-754.72,0.00030523,7]
[384827660,1757575809894,-400.0,0.00030523,7]
[384827661,1757575809979,-400.0,0.00030523,7]
[384827662,1757575810063,-400.0,0.00030523,7]
[384827663,1757575810143,-836.95,0.00030523,7]
[384827664,1757575810220,-400.0,0.00030523,7]
[384827665,1757575810301,-400.0,0.00030523,7]
[384827666,1757575810381,-400.0,0.00030523,7]
[384827667,1757575810463,-466.94,0.00030523,7]
[384827668,1757575810873,-514.91,0.00030523,7]
[384827669,1757575810954,-400.0,0.00030523,7]
[384827670,1757575811033,-400.0,0.00030523,7]
[384827671,1757575811110,-543.63282108,0.00030523,7]
[384827672,1757575811190,-792.7,0.00030523,7]
[384827673,1757575811271,-400.0,0.00030523,7]
[384827674,1757575811363,-400.0,0.00030523,7]
[384827675,1757575811441,-400.0,0.00030523,7]
[384827676,1757575811519,-400.0,0.00030523,7]
[384827677,1757575811599,-400.0,0.00030523,7]
[384827678,1757575811674,-400.0,0.00030523,7]
[384827679,1757575811751,-436.97,0.00030523,7]
[384827680,1757575811832,-400.0,0.00030523,7]
[384827681,1757575811919,-400.0,0.00030523,7]
[384827682,1757575812002,-400.0,0.00030523,7]
[384827683,1757575812092,-443.34743607,0.00030523,7]
[384827684,1757575812181,-400.0,0.00030523,7]
[384827685,1757575812259,-676.0,0.00030523,7]
[384827686,1757575812345,-400.0,0.00030523,7]
[384827687,1757575812431,-400.0,0.00030523,7]
[384827688,1757575812512,-634.11,0.00030523,7]
[384827689,1757575812593,-400.0,0.00030523,7]
[384827690,1757575812675,-559.8,0.00030523,7]
[384827691,1757575812753,-403.74625461,0.00030523,7]
[384827692,1757575812836,-400.0,0.00030523,7]
[384827693,1757575812919,-412.3131039,0.00030523,7]
[384827694,1757575813004,-811.3,0.00030523,7]
[384827695,1757575813088,-400.0,0.00030523,7]
[384827696,1757575813169,-400.0,0.00030523,7]
[384827697,1757575813249,-400.0,0.00030523,7]
[384827698,1757575813329,-872.82,0.00030523,7]
[384827699,1757575813428,-400.0,0.00030523,7]
[384827700,1757575813519,-610.73,0.00030523,7]
[384827701,1757575813605,-1321.6,0.00030523,7]
[384827702,1757575813688,-400.0,0.00030523,7]
[384827703,1757575813770,-400.0,0.00030523,7]
[384827704,1757575813849,-506.14155895,0.00030523,7]
[384827705,1757575813928,-400.0,0.00030523,7]
[384827706,1757575814029,-400.0,0.00030523,7]
[384827707,1757575814118,-835.08,0.00030523,7]
[384827708,1757575814199,-540.76,0.00030523,7]
[384827709,1757575814279,-1068.8,0.00030523,7]
[384827710,1757575814363,-400.0,0.00030523,7]
[384827711,1757575814445,-529.45,0.00030523,7]
[384827712,1757575814523,-400.0,0.00030523,7]
[384827713,1757575814602,-400.0,0.00030523,7]
[384827714,1757575814681,-407.28700418,0.00030523,7]
[384827715,1757575814760,-938.28,0.00030523,7]
[384827716,1757575814839,-687.64,0.00030523,7]
[384827717,1757575814919,-780.08,0.00030523,7]
[384827718,1757575815003,-400.0,0.00030523,7]
[384827719,1757575815089,-400.0,0.00030523,7]
[384827720,1757575815171,-738.18,0.00030523,7]
[384827721,1757575815252,-400.0,0.00030523,7]
[384827722,1757575815332,-400.0,0.00030523,7]
[384827723,1757575815417,-601.12,0.00030523,7]
[384827724,1757575815503,-569.58,0.00030523,7]
[384827725,1757575815588,-587.01,0.00030523,7]
[384827726,1757575815671,-945.48,0.00030523,7]
[384827727,1757575815755,-400.0,0.00030523,7]
[384827728,1757575815839,-404.67735814,0.00030523,7]
[384827729,1757575815924,-400.0,0.00030523,7]
[384827730,1757575816009,-544.31,0.00030523,7]
[384827731,1757575816102,-400.0,0.00030523,7]
[384827732,1757575816188,-631.21,0.00030523,7]
[384827733,1757575816268,-400.0,0.00030523,7]
[384827734,1757575816353,-852.2,0.00030523,7]
[384827735,1757575816437,-400.0,0.00030523,7]
[384827736,1757575816520,-400.0,0.00030523,7]
[384827737,1757575816604,-1037.97,0.00030523,7]
[384827738,1757575816686,-400.0,0.00030523,7]